bitfinex/quotes_ETHUSD_20240927
["timestamp","ask_amount","ask_price","bid_price","bid_amount"]
[1727396979658,6.093028,2640.7,2640.1,6.0602]
[1727396980501,4.93995526,2640.7,2640.1,6.0602]
[1727396980672,4.93995526,2640.7,2640.1,3.03009]
[1727396981000,1.91045526,2640.7,2640.2,3.03006]
[1727396981303,1.91045526,2640.7,2640.1,3.03009]
[1727396981304,3.7468692,2640.7,2640.1,3.03009]
[1727396981501,4.93998526,2640.7,2640.1,3.03009]
[1727396981863,3.7468692,2640.7,2640.2,3.03004]
[1727396983511,0.7173392,2640.7,2640.3,3.02993]
[1727396985540,0.7173392,2640.7,2640.1,3.03009]
[1727396985695,0.7173392,2640.7,2640.2,3.02999]
[1727396985892,0.7173392,2640.7,2640.3,3.02989]
[1727396992692,0.7173392,2640.7,2640.3,6.05978]
[1727396992860,0.7173392,2640.7,2640.3,3.02989]
[1727396993473,0.7173392,2640.7,2640.3,6.05978]
[1727396993673,0.7173392,2640.7,2640.4,3.02983]
[1727396993866,0.7173392,2640.7,2640.3,3.02989]
[1727396994162,0.7173392,2640.7,2640.3,6.05978]
[1727396995668,0.7173392,2640.7,2640.4,3.02983]
[1727396996600,0.7173392,2640.7,2640.3,6.05977]
[1727396999727,0.7173392,2640.7,2640.4,3.02983]
[1727397001368,1.25346226,2640.7,2640.4,3.02983]
[1727397001920,1.25346226,2640.7,2640.2,3.03006]
[1727397001921,0.6795,2640.5,2640.2,3.03006]
[1727397002322,0.6795,2640.5,2640.0,6.06045]
[1727397002530,0.6795,2640.5,2640.0,3.03019]
[1727397002714,0.6795,2640.5,2640.2,3.03005]
[1727397003442,1.61462139,2640.4,2640.0,3.03029]
[1727397003624,0.6795,2640.1,2639.8,3.03046]
[1727397003842,0.6795,2640.1,2639.9,3.03041]
[1727397004044,0.6795,2640.4,2640.1,3.03016]
[1727397004431,0.53615406,2640.5,2640.1,3.03016]
[1727397004432,0.53615406,2640.5,2640.3,3.02989]
[1727397004734,0.6795,2640.6,2640.3,3.02989]
[1727397004930,0.0378392,2640.7,2640.4,3.02983]
[1727397005162,0.0378392,2640.7,2640.6,3.02961]
[1727397005550,0.0378392,2640.7,2640.6,3.85121]
[1727397006478,0.0378392,2640.7,2640.5,3.02972]
[1727397006646,0.0378392,2640.7,2640.5,6.05944]
[1727397006972,0.0378392,2640.7,2640.5,3.02972]
[1727397007268,0.7173392,2640.7,2640.5,3.02972]
[1727397007975,0.0378392,2640.7,2640.6,3.02961]
[1727397008329,0.0378392,2640.7,2640.5,3.02972]
[1727397008630,0.0378392,2640.7,2640.5,3.02965]
[1727397009875,0.0378392,2640.7,2640.6,3.02961]
[1727397010036,0.0378392,2640.7,2640.6,3.78141]
[1727397014535,0.0378392,2640.7,2640.6,3.02961]
[1727397016731,0.0378392,2640.7,2640.5,3.02965]
[1727397016936,1.91045526,2640.7,2640.5,3.02965]
[1727397017554,1.19311606,2640.6,2640.5,3.02965]
[1727397017977,0.7173392,2640.7,2640.5,3.02965]
[1727397017978,1.91045526,2640.7,2640.5,3.02965]
[1727397018138,1.19311606,2640.6,2640.5,3.02965]
[1727397018658,0.0378392,2640.7,2640.6,3.02961]
[1727397019081,1.23095526,2640.7,2640.6,3.02961]
[1727397019995,1.23095526,2640.7,2640.5,3.78145]
[1727397020159,1.19311606,2640.6,2640.5,3.78145]
[1727397020689,1.23095526,2640.7,2640.6,3.02961]
[1727397021196,1.61858543,2640.7,2640.6,3.02961]
[1727397023085,2.0230388,2640.7,2640.6,3.02961]
[1727397023405,0.0378392,2640.7,2640.6,3.02961]
[1727397023702,1.62780385,2640.7,2640.6,3.02961]
[1727397024063,2.0230388,2640.7,2640.6,3.02961]
[1727397025802,2.02651978,2640.7,2640.6,3.02961]
[1727397027271,2.02651978,2640.7,2640.6,3.7109687]
[1727397028069,1.62875851,2640.7,2640.6,3.7109687]
[1727397028496,0.0378392,2640.7,2640.6,3.7109687]
[1727397028704,1.62875851,2640.7,2640.6,3.7109687]
[1727397028882,0.0378392,2640.7,2640.6,3.7109687]
[1727397029212,1.62875851,2640.7,2640.6,3.7109687]
[1727397029416,0.0378392,2640.7,2640.6,4.5030687]
[1727397029570,0.0378392,2640.7,2640.6,4.57879884]
[1727397030275,0.0378392,2640.7,2640.6,6.19214974]
[1727397032270,0.0378392,2640.7,2640.6,4.5030687]
[1727397036702,0.0378392,2640.7,2640.6,4.57878977]
[1727397038108,0.0378392,2640.7,2640.6,7.57878977]
[1727397038478,0.0378392,2640.7,2640.6,9.70106584]
[1727397038715,0.0378392,2641.5,2641.4,3.85509]
[1727397039024,0.0378392,2641.5,2641.4,3.93079064]
[1727397039383,2.02651978,2642.2,2642.1,3.02789]
[1727397039384,0.0378392,2642.2,2642.1,3.02789]
[1727397039584,0.0378392,2642.2,2642.1,3.63348]
[1727397039823,0.0378392,2642.2,2642.1,3.02789]
[1727397041230,0.0378392,2642.2,2641.9,3.02801]
[1727397041381,0.0378392,2642.2,2641.7,3.02826]
[1727397041382,0.7173392,2642.2,2641.7,3.02826]
[1727397041722,0.7173392,2642.2,2641.9,3.02811]
[1727397041891,0.7173392,2642.2,2642.0,3.02798]
[1727397042423,0.7173392,2642.2,2641.9,3.02811]
[1727397042424,0.7173392,2642.2,2642.1,3.02789]
[1727397043386,0.0378392,2642.2,2642.1,3.02789]
[1727397043984,0.0378392,2642.2,2642.1,4.54315434]
[1727397044885,0.0378392,2642.2,2642.1,3.64105949]
[1727397046221,0.0378392,2642.2,2642.1,4.46745949]
[1727397050703,0.0378392,2642.2,2642.1,7.96368525]
[1727397051101,0.0378392,2642.2,2642.1,4.46745949]
[1727397051322,0.0378392,2642.2,2642.1,4.54313805]
[1727397054139,0.0378392,2642.2,2642.1,3.64105949]
[1727397055151,0.0378392,2642.2,2642.1,7.98696773]
[1727397055311,0.0378392,2642.2,2642.1,7.91128525]
[1727397058129,0.0378392,2642.2,2642.1,4.41505949]
[1727397058654,0.0378392,2642.2,2642.1,4.49073455]
[1727397058857,0.0378392,2642.2,2642.1,4.41505949]
[1727397060357,0.0378392,2642.2,2642.1,3.64105949]
[1727397060555,0.0378392,2642.2,2642.1,3.71674189]
[1727397060748,0.0378392,2642.2,2642.1,3.64105949]
[1727397060947,0.0378392,2642.2,2642.1,3.71674184]
[1727397061318,0.0378392,2642.2,2642.1,7.9869676]
[1727397061524,0.0378392,2642.2,2642.1,7.91128525]
[1727397063983,0.0378392,2642.2,2642.1,4.41505949]
[1727397064274,0.0378392,2642.2,2642.1,7.98695808]
[1727397064473,0.0378392,2642.2,2642.1,10.91128525]
[1727397066336,0.0378392,2643.0,2642.1,10.13728525]
[1727397066646,0.0378392,2643.0,2642.9,3.02697]
[1727397066854,0.0378392,2643.0,2642.9,3.10263278]
[1727397069086,0.0378392,2643.0,2642.9,3.86673278]
[1727397069585,0.0378392,2643.0,2642.9,13.85917945]
[1727397069773,0.0378392,2643.8,2642.9,13.85917945]
[1727397069774,0.0378392,2643.8,2643.7,7.28638576]
[1727397069976,0.0378392,2643.8,2643.7,11.39326962]
[1727397070188,0.0378392,2643.8,2643.7,11.31764134]
[1727397071993,0.0378392,2643.8,2643.7,7.05731558]
[1727397072568,0.0378392,2643.8,2643.7,7.13294923]
[1727397072767,0.0378392,2643.8,2643.7,7.05731558]
[1727397075380,0.0378392,2643.8,2643.7,11.31764134]
[1727397078684,0.0378392,2644.6,2644.3,3.02527]
[1727397078993,0.0378392,2644.6,2644.4,3.02525]
[1727397079165,0.0378392,2644.6,2644.3,3.02527]
[1727397079496,0.0378392,2644.6,2644.5,3.02514]
[1727397079868,0.0378392,2644.6,2644.3,3.02527]
[1727397080485,0.0378392,2644.6,2644.4,3.02517]
[1727397081608,0.6795,2644.5,2644.4,0.605044]
[1727397081790,0.0378392,2644.6,2644.5,3.02514]
[1727397082165,0.0378392,2644.6,2644.5,3.10076013]
[1727397082800,0.0378392,2644.6,2644.5,10.42488589]
[1727397083098,0.0378392,2644.6,2644.5,10.34926576]
[1727397083300,0.0378392,2644.6,2644.5,6.85304]
[1727397083469,0.0378392,2644.6,2644.5,6.92864882]
[1727397084159,0.0378392,2644.6,2644.5,6.02514]
[1727397086498,0.7173392,2644.6,2644.5,3.02514]
[1727397087368,0.7173392,2644.6,2644.4,3.02524]
[1727397088200,0.7173392,2644.6,2644.5,3.02514]
[1727397091196,0.0378392,2644.6,2644.5,3.02514]
[1727397094494,0.0378392,2644.6,2644.5,4.53370303]
[1727397095738,0.7173392,2644.6,2644.5,3.630179]
[1727397096025,0.7173392,2644.6,2644.5,3.02514]
[1727397096389,0.0378392,2644.6,2644.5,3.02514]
[1727397096727,0.0378392,2644.6,2644.5,3.10076011]
[1727397096900,0.0378392,2644.6,2644.5,3.02514]
[1727397097290,0.0378392,2644.6,2644.5,3.10076122]
[1727397097657,0.0378392,2644.6,2644.5,3.71336234]
[1727397097822,0.0378392,2644.6,2644.5,3.63774112]
[1727397104109,0.0378392,2644.6,2644.4,3.02525]
[1727397105225,0.0378392,2644.6,2644.4,6.05043]
[1727397105607,0.0378392,2644.6,2644.5,3.02514]
[1727397105811,0.6795,2644.5,2644.2,6.05084]
[1727397106027,0.6795,2644.5,2644.2,3.02542]
[1727397106349,0.6795,2644.5,2644.2,6.05082]
[1727397106735,0.6795,2644.5,2644.4,3.02526]
[1727397106942,0.0378392,2644.6,2644.5,3.02514]
[1727397108025,0.0378392,2644.6,2644.5,3.85304]
[1727397113011,0.0378392,2644.6,2644.5,3.02514]
[1727397117223,0.0378392,2644.6,2644.4,3.02525]
[1727397117434,0.0378392,2644.6,2644.4,6.05044]
[1727397117612,0.0378392,2644.6,2644.4,3.02519]
[1727397117798,0.0378392,2644.6,2644.4,6.05037]
[1727397118122,0.0378392,2644.6,2644.4,3.02518]
[1727397118324,0.0378392,2644.6,2644.4,6.05037]
[1727397118831,0.0378392,2644.6,2644.5,3.02514]
[1727397120728,0.0378392,2644.6,2644.5,3.70579626]
[1727397120934,0.0378392,2644.6,2644.5,3.630172]
[1727397121527,0.0378392,2644.6,2644.5,10.87779776]
[1727397121938,0.0378392,2644.6,2644.5,7.381572]
[1727397122132,0.0378392,2644.6,2644.5,7.45718092]
[1727397123834,0.0378392,2644.6,2644.5,3.630172]
[1727397124057,0.0378392,2644.6,2644.5,3.02514]
[1727397125511,0.0378392,2644.6,2644.5,3.10075771]
[1727397127323,0.0378392,2644.6,2644.5,3.85215771]
[1727397128743,0.0378392,2644.6,2644.5,6.85215771]
[1727397129115,0.0378392,2644.6,2644.5,6.77654]
[1727397129311,0.0378392,2644.6,2644.5,7.83231922]
[1727397129626,0.0378392,2644.6,2644.5,7.756712]
[1727397131564,0.0378392,2644.6,2644.5,7.005312]
[1727397131942,0.0378392,2644.6,2644.5,7.08092191]
[1727397134381,0.0378392,2644.6,2644.5,7.85482191]
[1727397134569,0.0378392,2644.6,2644.5,7.779212]
[1727397135749,0.0378392,2644.6,2644.5,7.77787757]
[1727397136687,0.0378392,2644.6,2644.2,3.80914713]
[1727397136688,0.0378392,2644.6,2644.2,3.02543]
[1727397136897,3.49622576,2644.3,2643.8,3.02585]
[1727397137048,0.6795,2644.2,2643.8,3.02585]
[1727397137244,2.25582118,2644.2,2643.8,3.02585]
[1727397137551,0.6795,2644.0,2643.9,0.07564094]
[1727397137752,0.6795,2644.3,2643.9,0.0756394]
[1727397138090,0.6795,2644.3,2644.2,3.02548]
[1727397138742,1.57632118,2644.5,2644.2,3.02548]
[1727397138948,1.61416038,2644.6,2644.4,3.02526]
[1727397139981,0.0378392,2644.6,2644.4,3.02526]
[1727397140577,0.0378392,2644.6,2644.3,3.02534]
[1727397140789,0.0378392,2644.6,2644.2,3.02548]
[1727397141188,3.49622576,2644.3,2643.8,3.0259]
[1727397141496,5.65109974,2644.6,2643.5,3.0262]
[1727397141497,3.49622576,2644.1,2643.5,3.0262]
[1727397141643,3.49622576,2644.1,2643.2,3.02658]
[1727397141644,0.6771,2643.8,2643.2,3.02658]
[1727397141849,3.49622576,2643.7,2643.2,3.02658]
[1727397142044,1.57632118,2644.1,2642.8,1.55760713]
[1727397142045,0.6771,2643.6,2643.5,3.02629]
[1727397143755,0.6771,2643.6,2643.3,3.10207256]
[1727397144057,0.6771,2644.1,2643.4,0.07565261]
[1727397144258,0.6771,2644.1,2644.0,3.02571]
[1727397144463,0.6771,2644.4,2644.0,3.02571]
[1727397144879,3.49622576,2644.3,2643.8,3.02591]
[1727397145058,0.6771,2644.2,2643.6,3.02612]
[1727397145395,0.6771,2644.2,2643.7,3.02604]
[1727397145693,0.6771,2644.0,2643.7,3.02604]
[1727397145895,0.6771,2644.0,2643.4,3.02635]
[1727397145896,0.6771,2644.0,2643.5,3.02618]
[1727397146101,0.6771,2643.8,2643.4,3.02635]
[1727397146396,0.6771,2643.8,2643.4,6.05266]
[1727397146820,0.6771,2643.8,2643.4,3.02631]
[1727397148021,0.6771,2643.8,2643.4,3.0263]
[1727397148175,0.6771,2643.1,2642.6,3.02725]
[1727397148371,3.86393576,2643.0,2642.4,3.02746]
[1727397148587,0.6771,2642.9,2642.4,3.02746]
[1727397149009,0.6771,2642.9,2642.3,3.02761]
[1727397149170,0.6771,2642.9,2642.7,3.02719]
[1727397149626,0.6771,2642.9,2642.7,6.05432]
[1727397149913,0.6771,2642.9,2642.8,3.02709]
[1727397150986,1.58462238,2643.8,2643.1,0.8112]
[1727397151187,0.6771,2643.9,2643.4,3.02633]
[1727397151486,0.6771,2643.9,2643.2,3.02658]
[1727397151487,3.70295,2643.9,2643.2,3.02658]
[1727397151702,0.370295,2643.8,2643.2,3.02658]
[1727397152711,0.370295,2643.8,2643.4,3.02639]
[1727397152915,0.370295,2643.8,2643.2,3.02658]
[1727397153126,3.396335,2643.8,2643.2,3.02658]
[1727397153308,3.70323,2643.7,2643.1,6.0534]
[1727397153507,4.4131585,2643.7,2643.2,3.02663]
[1727397154021,4.4131585,2643.7,2643.3,3.02648]
[1727397154022,1.3870285,2643.7,2643.3,3.02648]
[1727397154240,0.6771,2643.7,2643.5,3.02622]
[1727397154597,0.6771,2644.1,2643.6,0.07565014]
[1727397154841,0.6771,2644.1,2643.8,3.02586]
[1727397155438,0.6771,2644.1,2643.5,3.02621]
[1727397155737,0.370266,2644.0,2643.5,3.02621]
[1727397155947,0.6771,2644.1,2643.8,3.02584]
[1727397156147,0.6771,2644.1,2643.9,3.02576]
[1727397156348,0.6771,2644.1,2644.0,3.02571]
[1727397156584,0.6771,2644.5,2644.0,3.02571]
[1727397156841,0.6771,2644.5,2644.2,3.02543]
[1727397157018,0.6771,2644.5,2644.0,3.02571]
[1727397157019,0.6771,2644.5,2644.0,3.02563]
[1727397157206,0.6771,2644.5,2644.0,6.05126]
[1727397157738,0.6771,2644.5,2644.0,3.02562]
[1727397157947,0.6771,2644.5,2644.0,6.05126]
[1727397158101,0.6771,2644.5,2644.0,3.02562]
[1727397159003,0.6771,2644.5,2643.8,3.02587]
[1727397159004,0.6771,2644.3,2643.8,3.02587]
[1727397159400,3.70247,2644.3,2643.6,3.02609]
[1727397159619,3.70247,2644.3,2643.7,3.02602]
[1727397159828,3.70247,2644.3,2642.8,36.57213563]
[1727397159829,3.02561,2644.1,2643.4,3.02636]
[1727397160109,0.79994076,2644.0,2643.4,6.05263]
[1727397160708,0.6771,2643.9,2643.4,3.02631]
[1727397160922,0.6771,2643.9,2643.2,3.02655]
[1727397160923,3.70293,2643.9,2643.2,3.02655]
[1727397161105,0.6771,2643.9,2643.4,6.0527]
[1727397161612,0.6771,2643.9,2643.4,3.02632]
[1727397163104,3.0259,2643.9,2643.2,6.05313]
[1727397163309,1.35968408,2643.8,2643.2,3.02655]
[1727397163648,1.35968408,2643.8,2643.3,3.02641]
[1727397163944,1.35968408,2643.8,2643.4,6.05273]
[1727397164144,0.6771,2643.8,2643.5,3.02627]
[1727397164449,0.6771,2643.8,2643.6,3.02617]
[1727397164858,0.6771,2643.8,2643.6,3.02609]
[1727397165005,0.6771,2643.8,2643.3,0.07564773]
[1727397165006,0.6771,2644.2,2643.7,3.02606]
[1727397165205,0.6771,2644.2,2643.3,0.07564773]
[1727397165206,0.6771,2644.2,2643.9,3.02575]
[1727397165454,0.6771,2644.5,2644.1,3.02551]
[1727397166044,0.6771,2644.5,2644.1,6.05102]
[1727397166444,0.6771,2644.5,2644.1,3.02551]
[1727397168405,0.6771,2644.5,2644.1,0.07563294]
[1727397168637,0.6771,2644.5,2644.3,3.02529]
[1727397170180,0.6771,2644.5,2644.1,3.02553]
[1727397170361,0.6771,2644.5,2644.2,3.02548]
[1727397171075,0.6771,2644.5,2644.1,3.02553]
[1727397171284,0.6771,2644.5,2644.1,6.05107]
[1727397171501,0.6771,2644.5,2644.1,6.05105]
[1727397171779,0.6771,2644.5,2644.1,2.52552]
[1727397173386,0.6771,2644.5,2644.3,3.02528]
[1727397173680,0.6771,2644.5,2644.1,3.02555]
[1727397173886,0.6771,2644.5,2644.2,3.02548]
[1727397177403,0.6771,2644.5,2644.3,3.02529]
[1727397177605,0.0378392,2644.6,2644.4,0.07562663]
[1727397177804,0.0378392,2644.6,2644.3,3.02534]
[1727397178692,0.7149392,2644.6,2644.2,3.02541]
[1727397178893,0.7149392,2644.6,2644.3,3.02536]
[1727397179696,0.7149392,2644.6,2644.2,3.02541]
[1727397179882,0.7149392,2644.6,2644.3,3.02535]
[1727397180086,0.7149392,2644.6,2644.2,3.02541]
[1727397180286,0.7149392,2644.6,2644.2,6.05082]
[1727397180601,0.7149392,2644.6,2644.1,3.02557]
[1727397180817,0.7149392,2644.6,2644.2,3.02538]
[1727397181295,0.7149392,2644.6,2644.3,3.02533]
[1727397182473,0.7149392,2644.6,2644.4,3.02516]
[1727397182797,0.0378392,2644.6,2644.4,3.02516]
[1727397182963,0.0378392,2644.6,2644.4,3.02524]
[1727397183366,0.0378392,2644.6,2644.3,3.02533]
[1727397183791,0.0378392,2644.6,2644.3,3.02529]
[1727397184670,0.6771,2644.5,2644.1,3.02553]
[1727397185079,1.05109292,2644.5,2644.2,3.0254]
[1727397185296,0.6771,2644.5,2644.2,3.0254]
[1727397186777,0.6771,2644.5,2644.2,3.02548]
[1727397186977,0.6771,2644.5,2644.1,3.02559]
[1727397187210,1.39988846,2644.5,2644.2,3.02546]
[1727397187504,0.6771,2644.5,2644.2,3.02537]
[1727397187730,0.6771,2644.5,2644.4,3.02526]
[1727397187873,0.0378392,2644.6,2644.4,3.02526]
[1727397188072,0.0378392,2644.6,2644.5,3.02514]
[1727397189985,0.0378392,2644.6,2644.5,3.10075648]
[1727397190184,0.0378392,2644.6,2644.5,3.02514]
[1727397190379,0.0378392,2644.6,2644.5,3.63774165]
[1727397190613,0.0378392,2644.6,2644.5,3.71335812]
[1727397190910,0.0378392,2644.6,2644.5,3.71335815]
[1727397191272,0.0378392,2644.6,2644.5,4.52825815]
[1727397192387,0.0378392,2644.6,2644.5,7.52825815]
[1727397192607,0.0378392,2644.6,2644.5,11.01621357]
[1727397192810,0.0378392,2644.6,2644.5,7.45264165]
[1727397192973,0.0378392,2644.6,2644.5,7.52824214]
[1727397193176,0.0378392,2644.6,2644.5,4.45264165]
[1727397193495,0.0378392,2644.6,2644.5,3.91565209]
[1727397194595,0.0378392,2644.6,2644.5,3.84004]
[1727397195869,0.0378392,2644.6,2644.5,3.02514]
[1727397196173,0.7149392,2644.6,2644.4,3.02519]
[1727397196400,0.42028946,2644.5,2644.4,3.02526]
[1727397196908,0.7149392,2644.6,2644.3,3.0253]
[1727397199011,0.7149392,2644.6,2644.1,3.02553]
[1727397199173,0.7149392,2644.6,2644.3,3.02531]
[1727397200716,0.7149392,2644.6,2644.5,3.02514]
[1727397201104,0.0378392,2644.6,2644.5,3.02514]
[1727397201303,0.0378392,2644.6,2644.5,3.10075909]
[1727397201504,0.0378392,2644.6,2644.5,3.02514]
[1727397202105,0.0378392,2644.6,2644.5,4.52825881]
[1727397202417,0.0378392,2644.6,2644.5,4.4526408]
[1727397202782,0.0378392,2644.6,2644.5,4.52825336]
[1727397205574,0.0378392,2644.6,2644.5,3.02514]
[1727397215809,0.0378392,2644.6,2644.5,3.88596011]
[1727397216009,0.0378392,2644.6,2644.5,3.02514]
[1727397222773,0.0378392,2644.6,2644.5,3.81034]
[1727397228363,0.0378392,2644.6,2644.5,3.02514]
[1727397231374,0.0378392,2644.6,2644.2,3.0254]
[1727397231675,0.6771,2644.5,2644.4,3.02525]
[1727397232583,0.0378392,2644.6,2644.5,3.02514]
[1727397233272,0.26779536,2644.6,2644.4,3.02525]
[1727397233474,0.94489536,2644.6,2644.5,3.02514]
[1727397234080,0.7149392,2644.6,2644.5,3.02514]
[1727397237060,0.7149392,2644.6,2644.3,6.05068]
[1727397237241,2.29956158,2644.6,2644.4,3.02525]
[1727397237469,0.7149392,2644.6,2644.4,3.02525]
[1727397238001,2.29956158,2644.6,2644.4,3.02525]
[1727397238162,0.7149392,2644.6,2644.4,3.02525]
[1727397240953,2.29956158,2644.6,2644.4,3.02525]
[1727397241148,0.0378392,2644.6,2644.5,3.02514]
[1727397241859,0.0378392,2644.6,2644.2,3.0254]
[1727397242198,0.0378392,2644.6,2644.0,3.0257]
[1727397242199,3.48795542,2644.4,2644.0,3.0257]
[1727397242488,6.51352542,2644.2,2643.7,0.01843802]
[1727397242690,3.48795542,2643.9,2643.7,0.01843802]
[1727397242895,0.6771,2643.8,2643.7,0.01843802]
[1727397243757,5.28766238,2643.8,2643.7,0.01843802]
[1727397244094,2.66205585,2643.8,2643.7,0.01843802]
[1727397244466,2.26376772,2643.8,2643.7,0.01843802]
[1727397244668,3.34002562,2643.8,2643.7,0.01843802]
[1727397245011,2.26378195,2643.8,2643.7,0.01843802]
[1727397245379,0.6771,2643.8,2643.7,0.01843802]
[1727397247667,7.23265796,2644.1,2643.8,3.02591]
[1727397247668,0.6771,2644.1,2643.8,3.02591]
[1727397247867,0.6771,2644.1,2643.7,3.04439802]
[1727397248305,0.6771,2644.4,2643.9,3.02575]
[1727397249012,0.6771,2644.4,2644.1,3.02559]
[1727397249503,0.6771,2644.4,2643.9,3.02575]
[1727397250583,0.6771,2644.4,2643.9,6.0515]
[1727397251269,0.6771,2644.4,2643.9,3.02575]
[1727397251464,0.0378392,2644.6,2644.1,0.8246]
[1727397251711,0.0378392,2644.6,2644.1,3.02559]
[1727397252613,0.0378392,2644.6,2644.2,3.02542]
[1727397253293,0.0378392,2644.6,2644.0,3.02563]
[1727397253490,0.0378392,2644.6,2644.1,3.02552]
[1727397253802,0.0378392,2644.6,2644.2,3.02541]
[1727397254190,0.0378392,2644.6,2644.2,3.63807731]
[1727397254511,0.0378392,2644.6,2644.4,3.02524]
[1727397255009,0.0378392,2644.6,2644.4,6.05042]
[1727397255707,0.0378392,2644.6,2644.4,6.05036]
[1727397256071,0.0378392,2644.6,2644.4,3.02518]
[1727397256609,0.0378392,2644.6,2644.4,3.02517]
[1727397258369,0.0378392,2644.6,2644.2,3.02543]
[1727397258706,0.0378392,2644.6,2644.2,3.02541]
[1727397260268,3.48795542,2644.5,2643.9,3.0258]
[1727397260606,0.6771,2644.4,2643.9,3.02582]
[1727397261307,0.6771,2644.4,2644.0,3.02571]
[1727397261686,3.48795542,2644.3,2643.9,3.02574]
[1727397261883,1.77469281,2644.4,2644.0,3.02569]
[1727397265762,3.0629292,2644.6,2644.3,3.02526]
[1727397265763,0.7149392,2644.6,2644.3,3.02526]
[1727397265962,0.0378392,2644.6,2644.5,3.02514]
[1727397267516,0.0378392,2644.6,2644.5,3.630179]
[1727397273982,0.0378392,2644.6,2644.4,3.02525]
[1727397274200,4.20289462,2644.6,2644.2,3.02543]
[1727397274643,4.20289462,2644.6,2644.2,3.02542]
[1727397275040,0.7149392,2644.6,2644.3,3.02536]
[1727397276949,0.7149392,2644.6,2644.4,3.0252]
[1727397277179,0.7149392,2644.6,2644.3,3.02535]
[1727397278819,0.7149392,2644.6,2644.2,3.02543]
[1727397278994,0.7149392,2644.6,2644.4,3.02525]
[1727397279190,0.0378392,2644.6,2644.5,3.02514]
[1727397280221,0.6771,2644.5,2644.2,3.02547]
[1727397280406,0.6771,2644.5,2644.3,3.02527]
[1727397280806,0.0378392,2644.6,2644.4,6.05045]
[1727397281124,0.0378392,2644.6,2644.4,3.02519]
[1727397281420,0.45812866,2644.6,2644.4,3.02519]
[1727397281785,0.0378392,2644.6,2644.4,3.02519]
[1727397282117,0.0378392,2644.6,2644.5,3.02514]
[1727397283731,0.0378392,2644.6,2644.4,3.02519]
[1727397283940,0.0378392,2644.6,2644.5,3.02514]
[1727397284939,0.0378392,2644.6,2644.5,3.10076223]
[1727397285231,0.0378392,2644.6,2644.5,3.71885522]
[1727397288439,0.0378392,2644.6,2644.5,3.02514]
[1727397289654,0.7149392,2644.6,2644.3,3.02533]
[1727397289813,0.7149392,2644.6,2644.4,3.02525]
[1727397291040,0.7149392,2644.6,2644.2,3.02541]
[1727397291345,1.43771066,2644.6,2644.3,3.02534]
[1727397291846,1.43771066,2644.6,2644.3,6.05065]
[1727397292913,1.43771066,2644.6,2643.9,0.8112]
[1727397293289,3.48795542,2644.5,2644.1,3.02556]
[1727397293491,2.69678576,2644.6,2644.2,3.02547]
[1727397293664,0.61847412,2644.5,2644.2,3.02547]
[1727397293862,0.0378392,2644.6,2644.3,0.8292]
[1727397294096,0.0378392,2644.6,2644.5,3.02514]
[1727397301292,0.0378392,2644.6,2644.5,3.85434]
[1727397309781,0.0378392,2644.6,2644.5,3.92995883]
[1727397310367,0.0378392,2644.6,2644.5,5.53873586]
[1727397310714,0.0378392,2644.6,2644.5,6.39512445]
[1727397312399,0.0378392,2644.6,2644.5,4.78634742]
[1727397313914,0.0378392,2644.6,2644.5,4.71072859]
[1727397314120,0.0378392,2644.6,2644.5,3.02514]
[1727397315975,0.0378392,2644.6,2643.9,0.8178]
[1727397316185,0.6771,2644.4,2644.0,3.02563]
[1727397317170,0.6771,2644.4,2644.0,6.05128]
[1727397317714,0.6771,2644.4,2644.0,3.02563]
[1727397317885,0.6771,2644.4,2644.1,3.02559]
[1727397318691,0.6771,2644.4,2644.0,3.02563]
[1727397318898,0.41632127,2644.3,2644.0,3.02563]
[1727397320094,0.41632127,2644.3,2644.0,6.05128]
[1727397320326,0.6771,2644.4,2644.3,3.02537]
[1727397320530,0.7149392,2644.6,2644.3,3.02537]
[1727397320887,0.7149392,2644.6,2644.5,3.02514]
[1727397321225,0.0378392,2644.6,2644.5,3.02514]
[1727397324589,0.0378392,2644.6,2644.3,3.02534]
[1727397324785,0.0378392,2644.6,2644.0,0.8178]
[1727397324985,0.6771,2644.5,2644.1,3.0255]
[1727397325233,1.39970019,2644.5,2644.1,3.0255]
[1727397325431,1.39970019,2644.5,2644.1,6.05103]
[1727397325890,1.39970019,2644.5,2643.9,6.05152]
[1727397326199,4.42486019,2644.5,2644.0,3.02569]
[1727397326406,0.79488121,2644.4,2644.0,3.02569]
[1727397328602,0.79488121,2644.4,2644.0,3.02564]
[1727397328952,0.79488121,2644.4,2644.1,3.02557]
[1727397329133,0.6771,2644.5,2644.1,3.02557]
[1727397329645,0.6771,2644.5,2644.2,3.02542]
[1727397329848,0.6771,2644.5,2644.3,3.02534]
[1727397330446,0.6771,2644.5,2644.3,6.05065]
[1727397331053,0.0378392,2644.6,2644.3,3.02531]
[1727397331252,0.0378392,2644.6,2644.5,3.02514]
[1727397331958,0.13713635,2644.6,2644.3,6.05058]
[1727397332155,0.0378392,2644.6,2644.3,6.05058]
[1727397332357,0.09931202,2644.5,2644.3,6.05058]
[1727397332558,0.09931202,2644.5,2644.4,3.02526]
[1727397332758,0.09931202,2644.5,2644.3,3.02527]
[1727397332943,0.09931202,2644.5,2644.3,6.05057]
[1727397333461,0.09931202,2644.5,2644.3,3.02527]
[1727397333670,0.09931202,2644.5,2644.4,3.02526]
[1727397341858,0.09931202,2644.5,2644.3,3.02536]
[1727397342065,0.09931202,2644.5,2644.2,3.02545]
[1727397343579,0.09931202,2644.5,2644.3,3.02537]
[1727397344888,0.09931202,2644.5,2644.4,3.02526]
[1727397345092,0.09931202,2644.5,2644.4,4.443123]
[1727397345386,0.0378392,2644.6,2644.5,3.02514]
[1727397348683,0.13756097,2644.6,2644.4,7.468383]
[1727397348856,0.13756097,2644.6,2644.4,6.05052]
[1727397349062,0.13756097,2644.6,2644.4,3.02526]
[1727397349764,0.13756097,2644.6,2644.4,3.02519]
[1727397350167,0.13756097,2644.6,2644.5,3.02514]
[1727397353278,0.13756097,2644.6,2644.2,3.02541]
[1727397353279,0.6771,2644.5,2644.2,3.02541]
[1727397353481,0.6771,2644.5,2644.2,6.05083]
[1727397353656,0.09995673,2644.4,2644.2,3.02541]
[1727397355370,0.09995673,2644.4,2644.3,3.02537]
[1727397356189,0.0378392,2644.6,2644.3,3.02537]